[Event "Hungarian Super League 2024-25"]
[Site "Hungary"]
[Date "2024.11.02"]
[Round "1.46"]
[White "Horvath, Adam"]
[Black "Torma, Robert"]
[Result "1/2-1/2"]
[ECO "C07"]
[WhiteElo "2384"]
[BlackElo "2419"]
[Annotator "TA"]
[PlyCount "64"]
[EventDate "2024.10.30"]
[EventType "team-tourn"]
[EventCountry "HUN"]
[SourceTitle "playchess.com"]
[Source "ChessBase"]
[SourceQuality "1"]
[TimeControl "40/5400+30:1800+30"]

{[%evp 25,64,40,46,-48,-56,-53,-52,-43,-44,-32,-51,-496,-476,-485,-39,-49,-52,-47,0,0,0,0,0,0,0,0,0,-8,-14,-14,0,0,0,0,0,0,0,0,0,0,0]} 1. e4 {[%emt 0:00:38]} e6 {[%emt 0:00:35]} 2. d4 {[%emt 0:00:08]} d5 {[%emt 0:00:06]} 3. Nd2 {[%emt 0:00:11]} c5 {[%emt 0:00:07]} 4. exd5 {[%emt 0:01:38]} Qxd5 {[%emt 0:00:07]} 5. Ngf3 {[%emt 0:00:31]} cxd4 {[%emt 0:00:30]} 6. Bc4 {[%emt 0:00:06]} Qd6 {[%emt 0:00:11]} 7. O-O {[%emt 0:00:15]} Nf6 {[%emt 0:01:35]} 8. Nb3 {[%emt 0:00:14]} Nc6 {[%emt 0:00:36]} 9. Nbxd4 {[%emt 0:04:42]} Nxd4 {[%emt 0:00:08]} 10. Nxd4 {[%emt 0:00:03]} a6 {[%emt 0:00:22]} 11. Bb3 {[%emt 0:04:43]} Qc7 {[%emt 0:01:28]} 12. Re1 {[%emt 0:04:42]} Bd7 {[%emt 0:01:55]} 13. Qf3 {[%emt 0:12:23]} Bd6 {[%emt 0:13:51]} 14. Nf5 {[%emt 0:02:02]} (14. h3 $1 $14) 14... Bxh2+ $15 {[%emt 0:14:47]} 15. Kh1 {[%emt 0:00:36]} O-O-O $1 {[%emt 0:14:08]} 16. Nxg7 {[%emt 0:49:00] Black is slightly better.} Be5 {[%emt 0:17:18] [#] aiming for ...Rhg8.} 17. Bg5 {[%emt 0:00:41]} Bc6 {[%emt 0:00:57]} 18. Bxf6 $2 {[%emt 0:05:50][%mdl 8192]} Bxf3 $19 {[%emt 0:00:31]} 19. Bxe5 {[%emt 0:02:16]} Qc5 {[%emt 0:17:42]} (19... Qb6 $19 {[%cal Ob6f2] ( -> ...Qxf2!)} 20. Re3 Bc6 21. Nxe6 Rhg8 22. Nxd8 Bxg2+ (22... Kxd8 23. Rd1+ Kc8 24. Bd5 $11) (22... Qxd8 $2 23. Bg3 $19) 23. Kg1 Qh6 (23... Qxd8 24. Bxf7 Qh4 25. Bh2 $11) (23... Kxd8 24. Rd1+ Kc8 25. Bxf7 $11)) 20. Re3 $1 $15 {[%emt 0:01:46]} Bc6 {[%emt 0:02:27]} 21. Nxe6 $1 {[%emt 0:03:17]} Qe7 {[%emt 0:02:24]} (21... fxe6 $15 22. Bxe6+ Bd7 23. Bxd7+ (23. Rc3 Qxc3 24. Bxd7+ Rxd7 $17) 23... Rxd7 (23... Kxd7 24. Bxh8 Qxc2 25. Bd4 $11) 24. Bxh8 (24. Rc3 Qxc3 25. Bxc3 Rhd8 $17) 24... Qf8 (24... Qxc2 $2 {is the wrong capture.} 25. Rc3+ Rc7 26. Rxc2 $18)) 22. Nxd8 $11 {[%emt 0:03:08] The position is equal.} Rxd8 {[%emt 0:00:11]} 23. Rae1 {[%emt 0:00:47]} Qg5 {[%emt 0:04:43][%csl Gc6][%cal Rg5g2] [#]} 24. Bg3 $1 {[%emt 0:00:27]} Qh5+ {[%emt 0:00:45]} 25. Kg1 {[%emt 0:00:05]} Rd1 {[%emt 0:00:23]} 26. c3 {[%emt 0:00:53] The board is on fire.} Rxe1+ {[%emt 0:00:20]} 27. Rxe1 {[%emt 0:00:03]} Bd7 {[%emt 0:01:53]} 28. Re7 {[%emt 0:02:25]} Qg5 {[%emt 0:00:54]} 29. Rxf7 {[%emt 0:00:54] Rf8+ would now be deadly.} Qc1+ {[%emt 0:01:22]} 30. Kh2 {[%emt 0:00:23]} Qh6+ {[%emt 0:00:04]} 31. Kg1 {[%emt 0:00:04]} Qc1+ {[%emt 0:00:04]} 32. Kh2 {[%emt 0:00:03]} Qh6+ {[%emt 0:00:06] Weighted Error Value: White=0.27 (precise) /Black=0.45.  Loses game:     	White=1     	---        Missed win:     	---       	Black=1      Mistake:       	---       	Black=1      OK:         	White=4     	Black=10     Best:        	White=7     	Black=3      Strong:       	White=3     	Black=1} 1/2-1/2

[Event "Hungarian Super League 2024-25"]
[Site "Hungary"]
[Date "2024.11.02"]
[Round "1.47"]
[White "Fogarasi, Tibor"]
[Black "Szabo, Bence"]
[Result "1/2-1/2"]
[ECO "C42"]
[WhiteElo "2298"]
[BlackElo "2341"]
[Annotator "RC"]
[PlyCount "61"]
[EventDate "2024.10.30"]
[EventType "team-tourn"]
[EventCountry "HUN"]
[SourceTitle "playchess.com"]
[Source "ChessBase"]
[SourceQuality "1"]
[TimeControl "40/5400+30:1800+30"]

1. e4 {[%emt 0:00:39]} e5 {[%emt 0:01:08]} 2. Nf3 {[%emt 0:00:21]} Nf6 {[%emt 0:00:30]} 3. Nxe5 {[%emt 0:03:31]} d6 {[%emt 0:01:56]} 4. Nf3 {[%emt 0:00:11]} Nxe4 {[%emt 0:00:09]} 5. d3 {[%emt 0:00:40]} Nf6 {[%emt 0:00:12]} 6. d4 {[%emt 0:00:13]} g6 {[%emt 0:01:03]} 7. Be2 {[%emt 0:04:14]} Bg7 {[%emt 0:01:58]} 8. O-O {[%emt 0:00:14]} O-O {[%emt 0:00:31]} 9. d5 {[%emt 0:09:00]} Re8 {[%emt 0:05:31]} 10. c4 {[%emt 0:02:43]} Ne4 {[%emt 0:01:49]} 11. Nbd2 {[%emt 0:03:21]} Nxd2 {[%emt 0:01:31]} 12. Nxd2 {[%emt 0:01:15]} Bf5 {[%emt 0:12:23]} 13. Nf3 {[%emt 0:02:02]} c6 {[%emt 0:14:44]} 14. Bd3 {[%emt 0:08:03]} Bg4 {[%emt 0:11:06]} 15. h3 {[%emt 0:06:32]} Bxf3 {[%emt 0:01:17]} 16. Qxf3 {[%emt 0:00:10]} Nd7 {[%emt 0:05:21]} 17. Bf4 {[%emt 0:08:57]} Ne5 {[%emt 0:07:18]} 18. Bxe5 {[%emt 0:07:32]} Bxe5 {[%emt 0:01:56]} 19. dxc6 {[%emt 0:01:08]} bxc6 {[%emt 0:00:28]} 20. Be4 {[%emt 0:06:33]} Bxb2 {[%emt 0:02:16]} 21. Rab1 {[%emt 0:15:14]} Rb8 {[%emt 0:02:37]} 22. Bxc6 {[%emt 0:00:17]} Rf8 {[%emt 0:03:00]} 23. Bd5 {[%emt 0:01:22]} Qf6 {[%emt 0:02:55]} 24. Qxf6 {[%emt 0:02:10]} Bxf6 {[%emt 0:00:23]} 25. Rfe1 {[%emt 0:00:24]} Rxb1 {[%emt 0:07:09]} 26. Rxb1 {[%emt 0:00:06]} Re8 {[%emt 0:00:15]} 27. Rb7 {[%emt 0:01:09]} Re7 {[%emt 0:00:44]} 28. Rxe7 {[%emt 0:00:56]} Bxe7 {[%emt 0:00:07]} 29. Kf1 {[%emt 0:00:12]} Kg7 {[%emt 0:00:10]} 30. Ke2 {[%emt 0:00:14]} Bd8 {[%emt 0:00:23]} 31. f4 {[%emt 0:01:47]} 1/2-1/2

[Event "Hungarian Super League 2024-25"]
[Site "Hungary"]
[Date "2024.11.02"]
[Round "1.48"]
[White "Polyik, Peter"]
[Black "Szikszai, Bertalan"]
[Result "1-0"]
[ECO "A04"]
[WhiteElo "2323"]
[BlackElo "2283"]
[Annotator "RC"]
[PlyCount "67"]
[EventDate "2024.10.30"]
[EventType "team-tourn"]
[EventCountry "HUN"]
[SourceTitle "playchess.com"]
[Source "ChessBase"]
[SourceQuality "1"]
[TimeControl "40/5400+30:1800+30"]

1. Nf3 {[%emt 0:00:36]} c5 {[%emt 0:01:15]} 2. c4 {[%emt 0:00:18]} Nf6 {[%emt 0:00:33]} 3. g3 {[%emt 0:01:24]} Nc6 {[%emt 0:02:16]} 4. Bg2 {[%emt 0:00:24]} d5 {[%emt 0:03:29]} 5. cxd5 {[%emt 0:00:09]} Nxd5 {[%emt 0:00:05]} 6. Nc3 {[%emt 0:00:35]} Nc7 {[%emt 0:00:49]} 7. a3 {[%emt 0:01:54]} e6 {[%emt 0:17:23]} 8. O-O {[%emt 0:01:48]} Be7 {[%emt 0:00:06]} 9. e3 {[%emt 0:01:06]} O-O {[%emt 0:09:54]} 10. d4 {[%emt 0:03:05]} cxd4 {[%emt 0:00:32]} 11. Nxd4 {[%emt 0:06:17]} Nxd4 {[%emt 0:07:16]} 12. exd4 {[%emt 0:00:09]} Rb8 {[%emt 0:13:42]} 13. Bf4 {[%emt 0:15:53]} Bd6 {[%emt 0:02:30]} 14. Bxd6 {[%emt 0:05:53]} Qxd6 {[%emt 0:00:06]} 15. Rc1 {[%emt 0:01:47]} Rd8 {[%emt 0:06:05]} 16. Qh5 {[%emt 0:02:10]} b6 {[%emt 0:07:35]} 17. Ne4 {[%emt 0:04:07]} Qe7 {[%emt 0:00:14]} 18. Ng5 {[%emt 0:00:11]} h6 {[%emt 0:07:39]} 19. Qxf7+ {[%emt 0:01:23]} Qxf7 {[%emt 0:00:23]} 20. Nxf7 {[%emt 0:00:03]} Kxf7 {[%emt 0:00:26]} 21. Rxc7+ {[%emt 0:00:05]} Kf6 {[%emt 0:00:15]} 22. Rfc1 {[%emt 0:05:09]} a5 {[%emt 0:03:50]} 23. f4 {[%emt 0:07:46]} Ba6 {[%emt 0:02:21]} 24. d5 {[%emt 0:03:16]} Rd6 {[%emt 0:03:01]} 25. dxe6 {[%emt 0:14:39]} Rxe6 {[%emt 0:00:27]} 26. Ra7 {[%emt 0:04:12]} Bd3 {[%emt 0:00:29]} 27. Rcc7 {[%emt 0:05:30]} Bg6 {[%emt 0:01:11]} 28. g4 {[%emt 0:01:48]} Rd8 {[%emt 0:01:41]} 29. f5 {[%emt 0:01:41]} Rd1+ {[%emt 0:00:09]} 30. Kf2 {[%emt 0:00:45]} Rd2+ {[%emt 0:05:09]} 31. Kg3 {[%emt 0:00:09]} Re3+ {[%emt 0:04:15]} 32. Kf4 {[%emt 0:00:17]} Be8 {[%emt 0:00:29]} 33. Kxe3 {[%emt 0:00:26]} Rxg2 {[%emt 0:00:04]} 34. Re7 {[%emt 0:00:22]} 1-0

[Event "Hungarian Super League 2024-25"]
[Site "Hungary"]
[Date "2024.11.02"]
[Round "1.49"]
[White "Szakmary, Domonkos"]
[Black "Karacsonyi, Kata"]
[Result "1/2-1/2"]
[ECO "B56"]
[WhiteElo "2174"]
[BlackElo "2239"]
[Annotator "RC"]
[PlyCount "94"]
[EventDate "2024.10.30"]
[EventType "team-tourn"]
[EventCountry "HUN"]
[SourceTitle "playchess.com"]
[Source "ChessBase"]
[SourceQuality "1"]
[TimeControl "40/5400+30:1800+30"]

1. e4 {[%emt 0:00:36]} c5 {[%emt 0:00:37]} 2. Nf3 {[%emt 0:00:03]} d6 {[%emt 0:00:08]} 3. d4 {[%emt 0:00:04]} cxd4 {[%emt 0:00:06]} 4. Nxd4 {[%emt 0:00:05]} Nf6 {[%emt 0:00:09]} 5. Nc3 {[%emt 0:00:04]} Nc6 {[%emt 0:00:22]} 6. h3 {[%emt 0:00:08]} e5 {[%emt 0:00:42]} 7. Nf3 {[%emt 0:00:09]} Be7 {[%emt 0:02:39]} 8. Bc4 {[%emt 0:00:43]} O-O {[%emt 0:03:46]} 9. O-O {[%emt 0:00:04]} h6 {[%emt 0:09:33]} 10. Qe2 {[%emt 0:07:51]} a6 {[%emt 0:04:18]} 11. Rd1 {[%emt 0:06:08]} Qc7 {[%emt 0:06:28]} 12. a4 {[%emt 0:14:29]} Nb4 {[%emt 0:09:30]} 13. Na2 {[%emt 0:08:07]} Nxa2 {[%emt 0:12:24]} 14. Bxa2 {[%emt 0:00:09]} Qc6 {[%emt 0:00:32]} 15. Bd5 {[%emt 0:00:52]} Nxd5 {[%emt 0:00:24]} 16. exd5 {[%emt 0:00:49]} Qe8 {[%emt 0:05:02]} 17. c4 {[%emt 0:12:59]} f5 {[%emt 0:03:27]} 18. c5 {[%emt 0:02:44]} e4 {[%emt 0:01:10]} 19. cxd6 {[%emt 0:01:56]} Bxd6 {[%emt 0:13:03]} 20. Nd2 {[%emt 0:00:30]} Qe5 {[%emt 0:02:29]} 21. g3 {[%emt 0:01:42]} Bc5 {[%emt 0:05:28]} 22. Nf1 {[%emt 0:03:51]} f4 {[%emt 0:02:09]} 23. Bxf4 {[%emt 0:02:01]} Rxf4 {[%emt 0:00:10]} 24. gxf4 {[%emt 0:00:06]} Qxf4 {[%emt 0:00:05]} 25. Rac1 {[%emt 0:27:23]} Qg5+ {[%emt 0:00:38]} 26. Kh2 {[%emt 0:00:42]} Bd6+ {[%emt 0:05:16]} 27. Ng3 {[%emt 0:00:04]} h5 {[%emt 0:00:19]} 28. Rxc8+ {[%emt 0:04:02]} Rxc8 {[%emt 0:00:06]} 29. Qxe4 {[%emt 0:00:11]} Kh8 {[%emt 0:07:07]} 30. h4 {[%emt 0:00:56]} Qf6 {[%emt 0:00:11]} 31. Rd2 {[%emt 0:02:11]} Bf4 {[%emt 0:00:33]} 32. Re2 {[%emt 0:00:45]} Qxh4+ {[%emt 0:01:19]} 33. Kg2 {[%emt 0:00:03]} Bxg3 {[%emt 0:05:21]} 34. fxg3 {[%emt 0:00:05]} Qxe4+ {[%emt 0:01:22]} 35. Rxe4 {[%emt 0:00:02]} Rc2+ {[%emt 0:00:31]} 36. Kf3 {[%emt 0:00:26]} Rd2 {[%emt 0:00:33]} 37. Rb4 {[%emt 0:00:12]} Rxd5 {[%emt 0:00:30]} 38. Rxb7 {[%emt 0:00:07]} Rd3+ {[%emt 0:00:29]} 39. Kg2 {[%emt 0:00:09]} Rd2+ {[%emt 0:00:29]} 40. Kf3 {[%emt 0:00:00]} Rd3+ {[%emt 0:00:00]} 41. Kg2 {[%emt 0:01:42]} Kh7 {[%emt 0:12:07]} 42. Rb6 {[%emt 0:01:14]} g6 {[%emt 0:01:33]} 43. b4 {[%emt 0:00:11]} Rb3 {[%emt 0:00:22]} 44. b5 {[%emt 0:01:07]} axb5 {[%emt 0:00:14]} 45. Rxb5 {[%emt 0:00:38]} Ra3 {[%emt 0:00:07]} 46. a5 {[%emt 0:00:03]} Kh6 {[%emt 0:00:29]} 47. Rc5 {[%emt 0:00:04]} Kg7 {[%emt 0:00:17]} 1/2-1/2